Cogmind - Beta 12 *** ADVENTURER MODE // 2023.12.09 @ 06:51:35 Player: BreakerZirconia Result: Destroyed by G-47 Trooper with Particle Gun Performance ------------- Evolutions (1) 500 Regions Visited (2) 400 Robots Destroyed (23) 115 Value Destroyed (442) 442 Prototype IDs (0) 0 Alien Tech Used (0) 0 Bonus (0) 0 TOTAL SCORE: 1457 Bonus ------- None Cogmind --------- Core Integrity 0/400 Matter 287/300 Energy 92/100 System Corruption 0% Temperature Cool (30) Movement Core (100) Ox1 Location -9/Materials Parts ------- > --- POWER (1) -------- (None) > --- PROPULSION (2) --- (None) > --- UTILITY (3) ------ Terrain Scan Processor Utility Shielding > --- WEAPON (3) ------- Particle Gun > --- INVENTORY (5) ---- Light Treads Aluminum Leg Wheel Compact Wheel Peak State ------------ > --- POWER ------------ Ion Engine > --- PROPULSION ------- Wheel > --- UTILITY ---------- Terrain Scan Processor Utility Shielding > --- WEAPON ----------- Small Laser Light Assault Rifle Shotgun > --- INVENTORY -------- Light Ion Engine Light Treads Aluminum Leg Compact Wheel Grenade Launcher [Rating: 9] Favorites ----------- Power Ion Engine Engine Ion Engine Propulsion Wheel Wheel Wheel Utility Utility Shielding Storage Huge Storage Unit Processor Terrain Scan Processor Protection Utility Shielding Weapon Light Assault Rifle Energy Gun Small Laser Ballistic Gun Light Assault Rifle Launcher Grenade Launcher Build | -11 -10 -9 ------- Run | Jun Mat Mat Slots Evolved 2 | . . 2 Power . | . . . Propulsion . | . . . Utility 1 | . . 1 Weapon 1 | . . 1 Parts Attached 18 | 3 7 8 Power 2 | 1 . 1 Engine 2 | 1 . 1 Core . | . . . Reactor . | . . . Propulsion 3 | 1 2 . Treads . | . . . Leg . | . . . Wheel 3 | 1 2 . Hover . | . . . Flight . | . . . Utility 5 | . 2 3 Device . | . . . Storage 1 | . 1 . Processor 1 | . . 1 Hackware . | . . . Protection 3 | . 1 2 Artifact . | . . . Weapon 8 | 1 3 4 Energy Gun 2 | . 1 1 Energy Cannon . | . . . Ballistic Gun 5 | 1 2 2 Ballistic Cannon . | . . . Launcher 1 | . . 1 Special Weapon . | . . . Impact Weapon . | . . . Slashing Weapon . | . . . Piercing Weapon . | . . . Special Melee Weapon . | . . . Unidentified Prototypes . | . . . Parts Lost 12 | . 3 9 Power 2 | . . 2 Propulsion 1 | . . 1 Utility 2 | . 1 1 Weapon 7 | . 2 5 Highest Loss Streak 8 | . 3 8 To Critical Strikes . | . . . Average Slot Usage (%) 56 | . 58 51 Engine 11 | . 14 7 Wheel 11 | . 13 7 Processor 2 | . . 7 Protection 5 | . 4 9 Energy Gun 6 | . 6 6 Ballistic Gun 16 | . 18 12 Naked Turns . | . . . Heaviest Build 87 | 7 87 11 Greatest Support 26 | 10 26 10 Greatest Overweight (x) 8 | . 8 2 Average Overweight (x) . | . . . Largest Inventory Capacity 25 | 5 25 5 Average Capacity 5 | 5 5 5 Most Carried 5 | 4 5 5 Average Carried 4 | 3 4 4 Final Capacity 5 | 5 5 5 Final Carried 5 | 4 5 4 Class Distribution -------------------- 100% | Mutant Dominant Class ---------------- Mutant | -10/Materials Mutant | -9/Materials Resources | -11 -10 -9 ----------- Run | Jun Mat Mat Matter Collected 506 | 194 202 110 Remotely . | . . . Salvage Created 504 | . 327 177 Parts 47 | . 18 29 Haulers Intercepted . | . . . Recyclers Shooed 1 | . . 1 Parts Field Recycled . | . . . Retrieved Matter . | . . . Parts Self-Destructed . | . . . Prevented . | . . . Kills | -11 -10 -9 ------- Run | Jun Mat Mat Combat Hostiles Destroyed 18 | . 10 8 Guns 16 | . 10 6 AOE 2 | . . 2 Classes Destroyed 5 | . 2 3 Worker 4 | . . 4 Builder 1 | . . 1 Swarmer 9 | . 3 6 Grunt 8 | . 7 1 Sentry 1 | . . 1 Best Kill Streak 9 | . 6 9 Combat Bots Only 6 | . 6 4 Max Kills in Single Turn 3 | . 1 3 Gunslinging 2 | . . 2 Exploded 1 | . . 1 Melee . | . . . Uniques/NPCs Destroyed . | . . . Combat | -11 -10 -9 -------- Run | Jun Mat Mat Damage Taken 1507 | . 521 986 Core 529 | . 119 410 Absorbed by Shields . | . . . Regen/Repaired (Parts) 39 | . 39 . Core Remaining (%) 76 | 100 52 . Volleys Fired 66 | . 43 23 Largest 3 | . 2 3 Hottest 90 | . 60 90 Shots Fired 121 | . 80 41 Gun 117 | . 80 37 Cannon . | . . . Launcher 4 | . . 4 Special . | . . . Kinetic 95 | . 69 26 Thermal 22 | . 11 11 Explosive 4 | . . 4 Electromagnetic . | . . . Robot Hit Streak 21 | . 21 6 Robot Miss Streak 3 | . 3 2 Penetration Max . | . . . Secondary Targets 4 | . 1 3 Max Gunslinging Chain 2 | . 1 2 Shots Hit Robots 89 | . 64 25 Core Hits 43 | . 21 22 Critical Kills . | . . . Critical Parts Destroyed 1 | . 1 . Critical Strikes 1 | . 1 . Destroy 1 | . 1 . Melee Attacks . | . . . Impact . | . . . Slashing . | . . . Piercing . | . . . Sneak Attacks . | . . . Combat Hostiles . | . . . Follow-up Attacks . | . . . Damage Inflicted 1227 | . 602 625 Guns 976 | . 602 374 Cannons . | . . . Explosions 247 | . . 247 Melee . | . . . Ramming 4 | . . 4 Kinetic 777 | . 503 274 Thermal 199 | . 99 100 Explosive 247 | . . 247 Electromagnetic . | . . . Impact . | . . . Slashing . | . . . Piercing . | . . . Highest Corruption . | . . . Average Corruption . | . . . Corruption Purged . | . . . Corruption Blocked . | . . . Overload Shots . | . . . Overflow Damage . | . . . Projectiles . | . . . Explosions . | . . . Melee . | . . . Knockbacks . | . . . Impact . | . . . Kinetic . | . . . Secondary . | . . . Self-Inflicted Damage 9 | . . 9 Shots 1 | . . 1 Rammed 3 | . . 3 Targets Rammed 3 | . . 3 Kicked . | . . . Crushed . | . . . Highest Temperature 167 | . 114 167 Average Temperature 49 | . 44 59 Received Heat Transfer 846 | . 342 504 Siege Activations . | . . . Robots Corrupted . | . . . Combat Hostiles . | . . . Parts Fried . | . . . Impact Corruptions . | . . . Robots Melted . | . . . Combat Hostiles . | . . . Parts Melted 1 | . 1 . Heat Transferred 474 | . 225 249 Parts Sabotaged . | . . . Parts Stolen . | . . . Parts Stripped . | . . . Power Chain Reactions . | . . . Missiles Intercepted . | . . . Alert | -11 -10 -9 ------- Run | Jun Mat Mat Peak Influence 270 | . 270 209 Initial 36 | . . 36 Average 121 | . 127 131 Maximum Alert Level 1 | . 1 1 Low Security (%) 83 | 100 75 97 Level 1 16 | . 24 2 Level 2 . | . . . Level 3 . | . . . Level 4 . | . . . Level 5 . | . . . High Security . | . . . Max Security . | . . . Squads Dispatched 1 | . 1 . Investigation 1 | . 1 . Extermination . | . . . Reinforcement . | . . . Assault . | . . . Garrison . | . . . Intercept . | . . . Searches Triggered . | . . . Construction Impeded . | . . . Haulers Reinforced . | . . . Active Scanning Responses . | . . . Cargo Convoy Interrupts . | . . . Stealth | -11 -10 -9 --------- Run | Jun Mat Mat Distress Signals 2 | . 1 1 Communications Jammed . | . . . Distress Signals . | . . . Times Spotted 35 | . 19 16 Peak Tracking Total 8 | . 7 8 Tactical Retreats . | . . . Traps | -11 -10 -9 ------- Run | Jun Mat Mat Traps Triggered 1 | . 1 . Indirectly . | . . . Trap Hack Attempts . | . . . Triggered . | . . . Disarmed . | . . . Reprogrammed . | . . . Reused . | . . . Traps Extracted . | . . . Installed . | . . . Triggered . | . . . Machines | -11 -10 -9 ---------- Run | Jun Mat Mat Machines Disabled . | . . . Max in Single Turn . | . . . Machines Repaired . | . . . Machines Sabotaged . | . . . Overloaded Fab Kills . | . . . Hacking | -11 -10 -9 --------- Run | Jun Mat Mat Machines Accessed 3 | . 3 . Terminals 2 | . 2 . Fabricators . | . . . Repair Stations 1 | . 1 . Recycling Units . | . . . Scanalyzers . | . . . Garrison Access . | . . . Total Hacks 7 | . 7 . Successful 4 | . 4 . Failed 3 | . 3 . Catastrophic . | . . . Database Lockouts . | . . . Manual . | . . . Terminals 3 | . 3 . Fabricators . | . . . Repair Stations 4 | . 4 . Recycling Units . | . . . Scanalyzers . | . . . Garrison Access . | . . . Terminal Hacks 2 | . 2 . Alert Level 1 | . 1 . Zone Layout 1 | . 1 . Fabricator Hacks . | . . . Repair Station Hacks 2 | . 2 . Scan Component 1 | . 1 . Repair 1 | . 1 . Recycling Unit Hacks . | . . . Scanalyzer . | . . . Garrison Access Hacks . | . . . Unauthorized Hacks . | . . . Terminals . | . . . Fabricators . | . . . Repair Stations . | . . . Recycling Units . | . . . Scanalyzers . | . . . Garrison Access . | . . . Data Cores Recovered . | . . . Used . | . . . Hacking Detections 1 | . 1 . Full Trace Events . | . . . Feedback Events . | . . . Feedback Blocked . | . . . Robot Schematics Acquired . | . . . Robots Built . | . . . Authchips . | . . . Time . | . . . Total Robot Build Rating . | . . . Part Schematics Acquired . | . . . Parts Built . | . . . Authchips . | . . . Time . | . . . Total Part Build Rating . | . . . Parts Repaired 1 | . 1 . Time 26 | . 26 . Parts Recycled . | . . . Recycled Matter . | . . . Retrieved Matter . | . . . Retrieved Components . | . . . Parts Scanalyzed . | . . . Part Schematics Acquired . | . . . Parts Damaged . | . . . Bothacking | -11 -10 -9 ------------ Run | Jun Mat Mat Used RIF Installer . | . . . Robots Hacked . | . . . Non-combat . | . . . Combat . | . . . Robot Hacks Applied . | . . . Relay Couplers Released . | . . . Fabnet Peak Effective % . | . . . Robots Rewired . | . . . Allies Hacked . | . . . Hacks Repelled . | . . . Allies | -11 -10 -9 -------- Run | Jun Mat Mat Total Allies . | . . . Largest Group . | . . . Highest-Rated Group . | . . . Highest-Rated Ally . | . . . Total Orders . | . . . Ally Attacks . | . . . Total Damage . | . . . Kills . | . . . Allies Corrupted . | . . . Allies Melted . | . . . Intel | -11 -10 -9 ------- Run | Jun Mat Mat Robot Analysis Total . | . . . Derelict Logs Recovered . | . . . Drone Launches . | . . . Drone Recoveries . | . . . Exploration | -11 -10 -9 ------------- Run | Jun Mat Mat Turns Passed 1004 | 59 651 294 Spaces Moved 909 | 69 593 247 Core 111 | 17 26 68 Treads . | . . . Legs . | . . . Wheels 798 | 52 567 179 Hover . | . . . Flight . | . . . Fastest Speed 50 | 50 80 50 Average Speed 85 | 72 86 89 Slowest Speed 200 | 80 200 150 Overloaded Moves . | . . . Propulsion Burnouts . | . . . Robots Hopped . | . . . Cave-ins Triggered . | . . . Exploration Rate (%) 25 | 3 53 20 Regions Visited 2 Branch Regions . Pre-discovered Areas . | . . . Known Exits Taken . | . . . Unknown Exits Taken 2 | 1 1 . Scrap Searched . | . . . Spaces Dug . | . . . Terrain Destroyed 20 | . . 20 Melee . | . . . Projectile . | . . . AOE 20 | . . 20 Terrain Rammed . | . . . Walls Destroyed . | . . . Machines Disabled . | . . . Actions | -11 -10 -9 --------- Run | Jun Mat Mat Total 1022 | 76 663 283 Wait 15 | . 14 1 Move 907 | 68 592 247 Hop . | . . . Pick Up 10 | 5 4 1 Fast Attach 11 | 2 3 6 Attach 7 | 1 4 2 Detach 2 | . 2 . Swap . | . . . Drop 1 | . 1 . Fire 66 | . 43 23 Melee . | . . . Ram 3 | . . 3 Kick . | . . . Crush . | . . . Escape Stasis . | . . . Rewire . | . . . Trap . | . . . Miscellaneous . | . . . Route ------- -11/Junkyard -10/Materials (discovered 2 exits: *Mat / [*Min]) -9/Materials (discovered 1 exit: [*Sto]) History --------- Turn | Location | Event 7 | -11/Junkyard | Discovered new exit (range 15) 60 | -11/Junkyard | Entered Materials 123 | -10/Materials | Discovered new exit (range 12) 314 | -10/Materials | Build established: Mutant 320 | -10/Materials | Lost 3 parts (1u2w) 350 | -10/Materials | Repaired Wheel 518 | -10/Materials | Discovered new exit (range 3) 711 | -10/Materials | Entered another Materials area 711 | -9/Materials | Evolved 2 slots: Utility x1, Weapon x1 831 | -9/Materials | Discovered new exit (range 15) 904 | -9/Materials | Core integrity fell below 50% 953 | -9/Materials | Lost 8 parts (2p1n5w) 953 | -9/Materials | Core integrity fell below 20% 1005 | -9/Materials | Destroyed by G-47 Trooper with Particle Gun Last Messages --------------- Hvy. Assault Rifle destroyed. Extracted 42 matter. U-05 Engineer builds a Wall. U-05 Engineer lays Concrete. R-06 Scavenger collects Terrain Scanner. Acquired Med. Armor Plating. Slammed into G-47 Trooper. Atomic Centrifuge disabled. Y-45 Defender destroyed. Acquired 48 matter. Slammed into G-47 Trooper. R-06 Scavenger collects Wheel. Atomic Centrifuge disabled. R-06 Scavenger collects Aluminum Leg. Critical hit (Burn: +37). R-06 Scavenger collects Heat Sink. R-06 Scavenger collects Flight Unit. Critical hit (Burn: +37). Med. Armor Plating destroyed. Acquired Particle Gun. Map ----- +----------------------------------------------------+ | ?????????????????????????????????????????????????? | | ???????????????????????? ???????????????????????? | | ??????????????????????# < ??????????????????????? | | ??????????????????????? ??????###########?????? | | ??????????????????????? ??????# #?????? | | ???????????????????????# ??????# ####### | | ???????????????????????# ??????# !# | | ???????????????????????# #?????# # | | ???????????????????????# #?????# ]! # | | ??????????????????????## ##????# # ### | | ??????????????##+###### #????# !! # #?? | | ?????????????? ^ ###### # #?? | | ????????????? # [ #####+##### #?? | | ????????????? ######### % % #?? | | ??????????????? %= = % #?? | | ???????????????????""%" %! #?? | | ???????????? ??????"""" * ########?? | | ?????????# ?""""" #????????? | | ?????????# """"" %= = #????????? | | ?????????# """"" #%## ## #????????? | | ?????????# """"" # ### #????????? | | ?????????# """"" #####?# #????????? | | ?????????+ #### #?????# #????????? | | ?????????# #??# #?????# #????????? | | ?????????# ##+######/####### #????????? | | ?????????# ##### ## g @## # #????????? | | ???????????????# ??# ! ##""" """ + +????????? | | ???????????????# ???# ##"T "" # #????????? | | ???????????????#????# """ ##""" """ # ^#????????? | | ????????????????????# """ ## # #????????? | | ????????????????????# """ ## [ """ # #????????? | | ????????????????????# ## ! "" # #????????? | | ????????????????????######## """ # #????????? | | ???????????????????????????# # #????????? | | ???????????????????????????########## ????????? | | ????????????????????????????????????? ????????? | | ????????????????????????????????????? ?????????? | | ?????????????????????????????????????????????????? | | ?????????????????????????????????????????????????? | | ?????????????????????????????????????????????????? | | ?????????????????????????????????????????????????? | | ?????????????????????????????????????????????????? | | ?????????????????????????????????????????????????? | | ?????????????????????????????????????????????????? | | ?????????????????????????????????????????????????? | | ?????????????????????????????????????????????????? | | ?????????????????????????????????????????????????? | | ?????????????????????????????????????????????????? | | ?????????????????????????????????????????????????? | | ?????????????????????????????????????????????????? | +----------------------------------------------------+ Best States ------------- Heat Dissipation 28 Energy Generation 10 Energy Capacity 250 Matter Stores 300 Matter Capacity 300 Sight Range 16 Terrain Scan Density 85 Armor Coverage 225 Resistance: KI 20 Resistance: TH 20 Resistance: EX 20 Resistance: EM 20 Resistance: I 20 Resistance: S 20 Resistance: P 20 Utility Shielding 33 Evasion (%) 50 Offensive Hacking 10 Item Schematics ----------------- None Robot Schematics ------------------ None Fabricated ------------ Nothing Alien Tech Used ----------------- None Achievements -------------- Gunslinger Challenges ------------ None Game ------ Seed RiotExplosiveRifle Manual? 0 Play Time 00:15:40 Cumulative 5.3 hours Start 2023.12.09 @ 06:39:29 End 2023.12.09 @ 06:51:35 Sessions 1 Manual Loads 0 Difficulty Adventurer Special Mode None Game No. 12 Rogue 4 Adventurer 8 Explorer 0 Win Type - Total 0 Types 0/0/0/0/0/0/0/0/0 Lore% 5 Gallery% 10 Achievement% 10 Wizard Run 0 Options --------- ASCII 0 Keyboard 0 Movement Arrows Keybinds 0 Fullscreen 1 Font 18/SmallcapsGlow Map View 76x50 Tactical HUD 0 Map Filters NONE Filters NONE Steam 1 RUN: b77dbfa4-f068-452c-b9f6-f56245c09de5